fUSD/lending_fUSD_20260224
["ID","MTS","AMOUNT","RATE_DAILY","PERIOD"]
[406522069,1771906954534,-171.28432322,0.000108,2]
[406522070,1771906954562,-500.0,0.000108,2]
[406522071,1771906954589,-537.72815706,0.000108,2]
[406522072,1771906954617,-500.0,0.000108,2]
[406522073,1771906954648,-500.0,0.000108,2]
[406522074,1771906954676,-500.0,0.000108,2]
[406522075,1771906954702,-500.0,0.000108,2]
[406522076,1771906954730,-917.61466213,0.000108,2]
[406522077,1771906954756,-500.0,0.000108,2]
[406522078,1771906954784,-222.52303876,0.000108,2]
[406522079,1771906954848,-301.70963766,0.000108,2]
[406522080,1771906954876,-500.0,0.000108,2]
[406522081,1771906954903,-500.0,0.000108,2]
[406522082,1771906955131,-500.0,0.000108,2]
[406522083,1771906955159,-500.0,0.000108,2]
[406522084,1771906955188,-500.0,0.000108,2]
[406522085,1771906955216,-500.0,0.000108,2]
[406522086,1771906955243,-500.0,0.000108,2]
[406522087,1771906955271,-500.0,0.000108,2]
[406522088,1771906955311,-500.0,0.000108,2]
[406522089,1771906955430,-560.05495913,0.000108,2]
[406522090,1771906955459,-500.0,0.000108,2]
[406522091,1771906955487,-517.33106657,0.000108,2]
[406522092,1771906955515,-500.0,0.000108,2]
[406522093,1771906955543,-500.0,0.000108,2]
[406522094,1771906955572,-500.0,0.000108,2]
[406522095,1771906955606,-500.0,0.000108,2]
[406522096,1771906955638,-818.43570325,0.000108,2]
[406522097,1771906955668,-500.0,0.000108,2]
[406522098,1771906956022,-500.0,0.000108,2]
[406522099,1771906956051,-500.0,0.000108,2]
[406522100,1771906956082,-507.61476669,0.000108,2]
[406522101,1771906956111,-500.0,0.000108,2]
[406522102,1771906956141,-500.0,0.000108,2]
[406522103,1771906956170,-500.0,0.000108,2]
[406522104,1771906956198,-500.0,0.000108,2]
[406522105,1771906956226,-500.0,0.000108,2]
[406522106,1771906956254,-500.0,0.000108,2]
[406522107,1771906956944,-225.69760867,0.000108,2]
[406522108,1771906956959,-500.0,0.000108,2]
[406522109,1771906956973,-222.46521977,0.000108,2]
[406522110,1771906956982,-277.53478023,0.00011539,2]
[406522111,1771906956996,-984.78046662,0.00011539,2]
[406522112,1771906957010,-9653.50799048,0.00011539,2]
[406522113,1771906957020,-346.50200952,0.00011639,2]
[406522115,1771906964083,-10000.01,0.00011639,2]
[406522116,1771906964205,-10000.01,0.00011639,2]
[406522117,1771906964308,-10000.01,0.00011639,2]
[406522118,1771906967273,-10000.01,0.00011639,2]
[406522119,1771906967287,-10000.01,0.00011639,2]
[406522120,1771906967301,-10000.01,0.00011639,2]
[406522121,1771906967344,-10000.01,0.00011639,2]
[406522122,1771906978201,-312.192485,0.00011215,2]
[406522123,1771906978229,-3122.49072234,0.00011539,2]
[406522124,1771906978263,-3130.64358532,0.00011539,2]
[406522125,1771906979252,-153.23075626,0.00011539,2]
[406522126,1771906979287,-9693.54848748,0.00011639,2]
[406522127,1771906979500,-10000.01,0.00011639,2]
[406522128,1771906979678,-10000.01,0.00011639,2]
[406522129,1771906986325,-1500.0,0.00011282,2]
[406522130,1771906995017,571.08791582,0.00011539,2]
[406522131,1771907012151,1661.4360686,0.00011539,2]
[406522136,1771907027293,1262.6537556,0.00011539,2]
[406522140,1771907074493,-2394.01,0.00011616,2]
[406522141,1771907074627,-211.99,0.00011616,2]
[406522142,1771907074667,-1461.40007303,0.00011623,2]
[406522143,1771907074701,-250.0,0.00011623,2]
[406522144,1771907074902,-3442.32485394,0.00011629,2]
[406522145,1771907075003,-5000.01,0.00011629,2]
[406522146,1771907075102,-5000.01,0.00011629,2]
[406522147,1771907075176,-5000.01,0.00011629,2]
[406522148,1771907075230,-5000.01,0.00011629,2]
[406522149,1771907075301,-5000.01,0.00011629,2]
[406522150,1771907075395,-5000.01,0.00011629,2]
[406522151,1771907075508,-1235.24935101,0.00011629,2]
[406522152,1771907075548,-2529.51129798,0.00011629,2]
[406522153,1771907076722,383.401351,0.00011152,2]
[406522154,1771907077355,-150.0,0.00011637,2]
[406522155,1771907077981,180.9288573,0.00011539,2]
[406522156,1771907081265,500.0,0.00011638,2]
[406522157,1771907086190,337.0,0.00011522,2]
[406522182,1771907101153,1200.0,0.00011637,2]
[406522191,1771907115050,2482.0811427,0.00011539,2]
[406522192,1771907115073,76.89436972,0.00011539,2]
[406522198,1771907153393,4923.11563028,9.95e-05,2]
[406522199,1771907153419,5000.01,9.95e-05,2]
[406522200,1771907153441,5000.01,9.95e-05,2]
[406522201,1771907153462,5000.01,9.95e-05,2]
[406522202,1771907153485,5000.01,9.95e-05,2]
[406522203,1771907153506,5000.01,9.95e-05,2]
[406522204,1771907153528,5000.01,9.95e-05,2]
[406522205,1771907153550,5000.01,9.95e-05,2]
[406522206,1771907153572,5000.01,9.95e-05,2]
[406522207,1771907153594,5000.01,9.95e-05,2]
[406522208,1771907153617,3121.43090898,9.95e-05,2]
[406522209,1771907153639,10000.01,9.95e-05,2]
[406522210,1771907153661,10000.01,9.95e-05,2]
[406522211,1771907153976,10000.01,9.95e-05,2]
[406522212,1771907153999,10000.01,9.95e-05,2]
[406522213,1771907154024,10000.01,9.95e-05,2]
[406522214,1771907154047,10000.01,9.95e-05,2]
[406522215,1771907154069,10000.01,9.95e-05,2]
[406522216,1771907154092,10000.01,9.95e-05,2]
[406522217,1771907154114,4560.2536368,9.95e-05,2]
[406522218,1771907156403,-500.0,0.00011638,2]
[406522219,1771907157586,841.7691704,0.00011539,2]
[406522220,1771907160753,3158.2408296,8e-05,2]
[406522221,1771907160774,3059.05763183,8e-05,2]
[406522222,1771907160803,232.9084823,0.00011539,2]
[406522223,1771907169420,1708.04388587,0.00011178,2]
[406522224,1771907169439,5000.01,0.00011178,2]
[406522225,1771907169459,5000.01,0.00011178,2]
[406522226,1771907169479,3810.86611413,0.00011178,2]
[406522227,1771907190876,307.44,0.0001121,2]
[406522228,1771907191287,500.0,0.00011638,2]
[406522229,1771907193455,381.70388587,0.00011529,2]
[406522230,1771907193479,5000.01,0.00011529,2]
[406522231,1771907193504,5000.01,0.00011529,2]
[406522232,1771907193527,5000.01,0.00011529,2]
[406522233,1771907193550,5000.01,0.00011529,2]
[406522234,1771907193573,5000.01,0.00011529,2]
[406522235,1771907193595,5000.01,0.00011529,2]
[406522236,1771907193617,5000.01,0.00011529,2]
[406522237,1771907193641,5000.01,0.00011529,2]
[406522238,1771907193663,5000.01,0.00011529,2]
[406522239,1771907193688,5439.7563632,0.00011529,2]
[406522240,1771907193711,10000.01,0.00011529,2]
[406522241,1771907193734,10000.01,0.00011529,2]
[406522242,1771907193758,10000.01,0.00011529,2]
[406522243,1771907193780,10000.01,0.00011529,2]
[406522244,1771907193804,10000.01,0.00011529,2]
[406522245,1771907193829,10000.01,0.00011529,2]
[406522246,1771907193856,10000.01,0.00011529,2]
[406522247,1771907193880,10000.01,0.00011529,2]
[406522248,1771907193904,10000.01,0.00011529,2]
[406522249,1771907203078,-1200.208243,0.00011471,2]
[406522250,1771907207686,-3000.0,0.00011529,2]
[406522251,1771907207753,-10000.01,0.00011529,2]
[406522252,1771907207883,-10000.01,0.00011529,2]
[406522253,1771907207977,-10000.01,0.00011529,2]
[406522254,1771907208213,-10000.01,0.00011529,2]
[406522255,1771907208342,-10000.01,0.00011529,2]
[406522256,1771907208435,-10000.01,0.00011529,2]
[406522257,1771907208523,-10000.01,0.00011529,2]
[406522258,1771907208653,-10000.01,0.00011529,2]
[406522259,1771907216792,-10000.01,0.00011529,2]
[406522260,1771907223992,-155.0,0.00011528,2]
[406522261,1771907224022,-150.0,0.00011528,2]
[406522262,1771907224050,-300.0,0.00011528,2]
[406522263,1771907224160,200.0,0.000115,4]
[406522264,1771907224189,-8790.01,0.00011529,2]
[406522265,1771907226154,400.0,0.000116,4]
[406522270,1771907228247,700.0,0.000117,4]
[406522274,1771907230272,205.0,9.8e-05,2]
[406522275,1771907230328,900.0,0.000118,4]
[406522277,1771907232411,1100.0,0.000119,4]
[406522278,1771907232479,4361.54744834,0.000114,3]
[406522279,1771907232515,1413.46423449,0.000114,3]
[406522280,1771907232573,11100.02336559,0.000114,3]
[406522281,1771907232612,6707.98102664,0.000114,3]
[406522300,1771907236407,-1718.83783728,0.00011438,2]
[406522312,1771907239463,-500.0,0.000108,2]
[406522313,1771907239493,-500.0,0.000108,2]
[406522314,1771907239522,-500.0,0.000108,2]
[406522315,1771907239550,-500.0,0.000108,2]
[406522316,1771907239577,-140.01890344,0.000108,2]
[406522318,1771907245538,-719.97219312,0.000108,2]
[406522319,1771907245566,-500.0,0.000108,2]
[406522320,1771907245594,-500.0,0.000108,2]
[406522321,1771907245624,-550.4887646,0.000108,2]
[406522322,1771907248717,-500.0,0.000108,2]
[406522323,1771907248746,-500.0,0.000108,2]
[406522324,1771907248775,-500.0,0.000108,2]
[406522325,1771907248805,-500.0,0.000108,2]
[406522326,1771907248834,-500.0,0.000108,2]
[406522327,1771907248982,-500.0,0.000108,2]
[406522328,1771907249010,-500.0,0.000108,2]
[406522329,1771907249291,-638.55125783,0.000108,2]
[406522330,1771907249322,-500.0,0.000108,2]
[406522331,1771907249349,-222.90748434,0.000108,2]
[406522332,1771907249415,-277.09251566,0.000108,2]
[406522333,1771907249448,-500.0,0.000108,2]
[406522334,1771907249476,-500.0,0.000108,2]
[406522335,1771907249504,-500.0,0.000108,2]
[406522336,1771907249531,-500.0,0.000108,2]
[406522337,1771907251887,-520.58177915,0.000108,2]
[406522338,1771907251915,-500.0,0.000108,2]
[406522339,1771907251943,-500.0,0.000108,2]
[406522340,1771907251971,-500.0,0.000108,2]
[406522341,1771907251999,-458.8464417,0.000108,2]
[406522342,1771907256245,-41.1535583,0.000108,2]
[406522343,1771907256273,-500.0,0.000108,2]
[406522344,1771907256300,-500.0,0.000108,2]
[406522345,1771907256328,-500.0,0.000108,2]
[406522346,1771907256354,-500.0,0.000108,2]
[406522347,1771907256380,-417.7028834,0.000108,2]
[406522348,1771907256491,-82.2971166,0.000108,2]
[406522349,1771907256520,-801.52125794,0.000108,2]
[406522350,1771907256548,-821.6997531,0.000108,2]
[406522351,1771907256576,-200.0,0.00010901,2]
[406522352,1771907260664,-1562.33432544,0.00011438,2]
[406522353,1771907269756,-225.0,0.00011413,2]
[406522354,1771907275822,-173.164066,0.00011152,2]
[406522357,1771907291066,-4779.69676468,0.00011438,2]
[406522364,1771907341313,2087.726757,0.000114,3]
[406522365,1771907404527,150.0,0.00011437,14]
[406522384,1771907432131,-239.0,0.0001091,2]
[406522388,1771907432140,-106.51780687,0.0001091,2]
[406522400,1771907432186,-452.13219313,0.0001091,2]
[406522402,1771907432196,-300.0,0.00011174,2]
[406522403,1771907432205,-150.0,0.00011174,2]
[406522404,1771907432214,-300.0,0.00011174,2]
[406522405,1771907432223,-505.0,0.00011437,2]
[406522406,1771907432232,-1200.0,0.00011437,2]
[406522407,1771907432241,-743.23538073,0.00011438,2]
[406522408,1771907432252,-300.0,0.00011438,2]
[406522409,1771907432263,-2503.4613006,0.00011438,2]
[406522410,1771907432353,-18811.41244882,0.00011438,2]
[406522411,1771907432362,-1669.37026373,0.00011438,2]
[406522412,1771907432372,-150.0,0.00011438,2]
[406522413,1771907432381,-3127.56060278,0.00011439,2]
[406522414,1771907432390,-521.04212362,0.00011439,2]
[406522415,1771907432399,-30963.85598094,0.00011439,2]
[406522416,1771907432408,-1506.35894,0.00011439,2]
[406522418,1771907432417,-175.90711533,0.00011519,2]
[406522420,1771907432426,-1100.83573189,0.00011528,2]
[406522422,1771907432435,-1100.83573189,0.00011528,2]
[406522424,1771907432444,-1100.83573189,0.00011528,2]
[406522426,1771907432453,-1100.83573189,0.00011528,2]
[406522428,1771907432461,-1100.83573189,0.00011528,2]
[406522430,1771907432471,-1100.83573189,0.00011528,2]
[406522432,1771907432481,-1100.83573189,0.00011528,2]
[406522434,1771907432490,-1100.83573189,0.00011528,2]
[406522437,1771907432501,-1100.83573189,0.00011528,2]
[406522439,1771907432513,-1100.83573189,0.00011528,2]
[406522441,1771907432522,-1100.83573189,0.00011528,2]
[406522443,1771907432531,-1100.83573189,0.00011528,2]
[406522445,1771907432540,-1100.83573189,0.00011528,2]
[406522447,1771907432550,-1100.83573189,0.00011528,2]
[406522449,1771907432559,-1100.83573189,0.00011528,2]
[406522450,1771907432569,-1100.83573189,0.00011528,2]
[406522452,1771907432579,-1100.83573189,0.00011528,2]
[406522454,1771907432589,-1100.83573189,0.00011528,2]
[406522455,1771907432598,-1100.83573189,0.00011528,2]
[406522456,1771907432607,-1100.83573189,0.00011528,2]
[406522457,1771907432616,-1100.83573189,0.00011528,2]
[406522458,1771907432625,-1100.83573189,0.00011528,2]
[406522459,1771907432634,-1100.83573189,0.00011528,2]
[406522460,1771907432643,-1100.83573189,0.00011528,2]
[406522461,1771907432652,-1100.83573189,0.00011528,2]
[406522462,1771907432661,-1100.83573189,0.00011528,2]
[406522463,1771907432670,-1100.83573189,0.00011528,2]
[406522464,1771907432679,-1100.83573189,0.00011528,2]
[406522465,1771907432689,-1100.83573189,0.00011528,2]
[406522466,1771907432698,-1100.83573189,0.00011528,2]
[406522467,1771907432707,-1100.83573189,0.00011528,2]
[406522468,1771907432716,-1100.83573189,0.00011528,2]
[406522469,1771907432725,-1100.83573189,0.00011528,2]
[406522470,1771907432734,-1100.83573189,0.00011528,2]
[406522471,1771907432744,-1100.83573189,0.00011528,2]
[406522472,1771907432753,-1100.83573189,0.00011528,2]
[406522473,1771907432763,-1100.83573189,0.00011528,2]
[406522474,1771907432772,-1100.83573189,0.00011528,2]
[406522475,1771907432781,-1100.83573189,0.00011528,2]
[406522476,1771907432791,-1100.83573189,0.00011528,2]
[406522477,1771907432800,-1100.83573189,0.00011528,2]
[406522478,1771907432808,-1100.83573189,0.00011528,2]
[406522479,1771907432817,-1100.83573189,0.00011528,2]
[406522480,1771907432827,-1100.83573189,0.00011528,2]
[406522481,1771907432836,-1100.83573189,0.00011528,2]
[406522482,1771907432849,-1100.83573189,0.00011528,2]
[406522483,1771907432858,-1100.83573189,0.00011528,2]
[406522484,1771907432868,-1100.83573189,0.00011528,2]
[406522485,1771907432877,-1100.83573189,0.00011528,2]
[406522486,1771907432886,-1100.83573189,0.00011528,2]
[406522487,1771907432895,-1100.83573189,0.00011528,2]
[406522488,1771907432905,-1100.83573189,0.00011528,2]
[406522489,1771907432914,-1100.83573189,0.00011528,2]
[406522490,1771907432923,-1100.83573189,0.00011528,2]
[406522491,1771907432933,-1100.83573189,0.00011528,2]
[406522492,1771907432942,-1100.83573189,0.00011528,2]
[406522493,1771907432951,-1100.83573189,0.00011528,2]
[406522494,1771907432961,-1100.83573189,0.00011528,2]
[406522495,1771907432970,-1100.83573189,0.00011528,2]
[406522496,1771907432979,-1100.83573189,0.00011528,2]
[406522497,1771907432988,-1100.83573189,0.00011528,2]
[406522498,1771907432997,-368197.90169111,0.00011529,2]
[406522499,1771907433009,-532.82685681,0.00011529,2]
[406522517,1771907438273,-187.72990852,0.00011439,2]
[406522518,1771907438284,-113.57646145,0.00011529,2]
[406522519,1771907438295,-462.18730311,0.00011529,2]
[406522520,1771907438307,-1058.806807,0.00011529,2]
[406522521,1771907438327,-1327.63675751,0.00011529,2]
[406522522,1771907438390,-338.3581577,0.00011529,2]
[406522523,1771907438402,-3151.0,0.00011529,2]
[406522524,1771907438413,-62999.99999993,0.00011529,2]
[406522525,1771907438494,-948.75,0.00011529,2]
[406522532,1771907440424,-279.89771197,0.00011529,2]
[406522533,1771907440642,-421.82854064,0.00011529,2]
[406522534,1771907440654,-4424.0,0.00011529,2]
[406522535,1771907440665,-2813131.4894637,0.00011529,2]
[406522536,1771907440674,-2500.0,0.00011539,2]
[406522537,1771907440683,-225.0,0.00011636,2]
[406522538,1771907440692,-151.0,0.00011638,2]
[406522539,1771907440701,-151.0,0.00011638,2]
[406522540,1771907440711,-151.0,0.00011638,2]
[406522541,1771907440721,-151.0,0.00011638,2]
[406522542,1771907440730,-151.0,0.00011638,2]
[406522543,1771907440739,-151.0,0.00011638,2]
[406522544,1771907440748,-151.0,0.00011638,2]
[406522545,1771907440757,-151.0,0.00011638,2]
[406522546,1771907440768,-500.0,0.00011638,2]
[406522547,1771907440778,-151.0,0.00011638,2]
[406522548,1771907440787,-500.0,0.00011638,2]
[406522549,1771907440796,-151.0,0.00011638,2]
[406522550,1771907440806,-500.0,0.00011638,2]
[406522551,1771907440815,-151.0,0.00011638,2]
[406522552,1771907440823,-500.0,0.00011638,2]
[406522553,1771907440833,-151.0,0.00011638,2]
[406522554,1771907440842,-465.6850275,0.00011638,2]
[406522555,1771907440851,-151.0,0.00011638,2]
[406522556,1771907440861,-151.0,0.00011638,2]
[406522557,1771907440871,-151.0,0.00011638,2]
[406522558,1771907440880,-151.0,0.00011638,2]
[406522559,1771907440890,-151.0,0.00011638,2]
[406522560,1771907440900,-151.0,0.00011638,2]
[406522561,1771907440909,-151.0,0.00011638,2]
[406522562,1771907440919,-151.0,0.00011638,2]
[406522563,1771907440928,-151.0,0.00011638,2]
[406522564,1771907440937,-182.13295725,0.00011638,2]
[406522565,1771907440946,-267.75,0.00011638,2]
[406522566,1771907440955,-500.0,0.00011639,2]
[406522567,1771907440965,-183.0566,0.00011639,2]
[406522568,1771907440974,-1212.6617,0.00011639,2]
[406522569,1771907440984,-78330.797,0.00011639,2]
[406522570,1771907440993,-613.68933231,0.00011738,2]
[406522571,1771907441003,-10000.0,0.00011739,2]
[406522572,1771907441012,-299.99,0.00011739,2]
[406522573,1771907441023,-150.99,0.00011739,2]
[406522574,1771907441032,-999.99,0.00011739,2]
[406522575,1771907441041,-9999.99,0.00011739,2]
[406522576,1771907441051,-9999.99,0.00011739,2]
[406522577,1771907441060,-176.96,0.00011805,2]
[406522578,1771907441069,-150.0,0.00011814,2]
[406522579,1771907441078,-307.44,0.00011833,2]
[406522581,1771907441318,-332.0,0.00011837,2]
[406522582,1771907441327,-155.613,0.00011838,2]
[406522583,1771907441336,-1000.0,0.00011839,2]
[406522584,1771907441345,-1995.997,0.00011839,2]
[406522585,1771907441354,-217.17,0.0001185,2]
[406522586,1771907441363,-233.0,0.00011861,2]
[406522587,1771907441372,-154.0,0.00011878,2]
[406522588,1771907441381,-479.83419776,0.00011901,2]
[406522589,1771907441390,-267.75,0.00011912,2]
[406522590,1771907441399,-300.0,0.00012001,2]
[406522591,1771907441408,-300.0,0.00012001,2]
[406522592,1771907441417,-250.0,0.00012001,2]
[406522593,1771907441427,-24906.57731164,0.00012002,2]
[406522594,1771907441435,-314.0,0.00012013,2]
[406522595,1771907441444,-2877.42,0.00012026,2]
[406522596,1771907441453,-271.0,0.00012037,2]
[406522597,1771907441462,-30963.85598094,0.00012046,2]
[406522598,1771907441470,-27137.8058948,0.00012047,2]
[406522599,1771907441479,-487.0,0.00012061,2]
[406522600,1771907441488,-295.0,0.00012085,2]
[406522601,1771907441499,-611.0,0.00012106,2]
[406522602,1771907441511,-328.0,0.00012109,2]
[406522603,1771907441521,-931.0,0.0001213,2]
[406522604,1771907441530,-704.0,0.00012154,2]
[406522605,1771907441539,-1380.0,0.00012179,2]
[406522606,1771907441549,-267.77227548,0.00012186,2]
[406522607,1771907441558,-599.0,0.00012203,2]
[406522608,1771907441567,-225.60272737,0.00012218,2]
[406522609,1771907441578,-1238.0,0.00012227,2]
[406522610,1771907441587,-845.0,0.00012251,2]
[406522611,1771907441596,-903.0,0.00012275,2]
[406522612,1771907441605,-154.12,0.00012318,2]
[406522613,1771907441614,-753.0,0.00012328,2]
[406522614,1771907441624,-258.0,0.00012352,2]
[406522615,1771907441633,-1669.37026369,0.00012361,2]
[406522616,1771907441642,-716.0,0.00012377,2]
[406522617,1771907441651,-1280.0,0.00012401,2]
[406522618,1771907441660,-1392.0,0.00012426,2]
[406522619,1771907441670,-743.50770149,0.00012437,2]
[406522620,1771907441679,-500.0,0.00012437,2]
[406522621,1771907441688,-500.0,0.00012437,2]
[406522622,1771907441697,-500.0,0.00012437,2]
[406522623,1771907441706,-500.0,0.00012437,2]
[406522624,1771907441715,-500.0,0.00012437,2]
[406522625,1771907441726,-500.0,0.00012437,2]
[406522626,1771907441735,-250.0,0.00012437,2]
[406522627,1771907441744,-500.0,0.00012437,2]
[406522628,1771907441753,-257.5744131,0.00012437,2]
[406522629,1771907441762,-500.0,0.00012437,2]
[406522630,1771907441772,-500.0,0.00012437,2]
[406522631,1771907441781,-500.0,0.00012437,2]
[406522632,1771907441790,-500.0,0.00012437,2]
[406522633,1771907441799,-307.44,0.00012456,2]
[406522634,1771907441808,-255.0,0.00012502,2]
[406522635,1771907441816,-521.04212356,0.00012516,2]
[406522636,1771907441825,-1680.0,0.00012581,2]
[406522637,1771907441834,-250.0,0.00012582,2]
[406522638,1771907441844,-30963.85598094,0.00012653,2]
[406522639,1771907441853,-27137.8058948,0.00012656,2]
[406522640,1771907441862,-250.0,0.00012802,2]
[406522641,1771907441871,-193.0,0.00012802,2]
[406522642,1771907441880,-300.0,0.00012802,2]
[406522643,1771907441889,-490.04415408,0.00012835,2]
[406522644,1771907441899,-397.15,0.00012846,2]
[406522645,1771907441908,-2725.04997657,0.0001293,2]
[406522646,1771907441917,-771.01748645,0.00012985,2]
[406522647,1771907441926,-155.0,0.00013022,2]
[406522648,1771907441936,-454.1749961,0.00013047,2]
[406522649,1771907441945,-500.0,0.00013073,2]
[406522650,1771907441954,-164.7333528,0.00013073,2]
[406522651,1771907441963,-500.0,0.00013073,2]
[406522652,1771907441971,-500.0,0.00013073,2]
[406522653,1771907441981,-500.0,0.00013073,2]
[406522654,1771907441989,-500.0,0.00013073,2]
[406522655,1771907441998,-166.97672521,0.00013073,2]
[406522656,1771907442007,-165.36252658,0.00013073,2]
[406522657,1771907442016,-500.0,0.00013073,2]
[406522658,1771907442025,-500.0,0.00013073,2]
[406522659,1771907442034,-500.0,0.00013073,2]
[406522660,1771907442043,-500.0,0.00013073,2]
[406522661,1771907442053,-500.0,0.00013073,2]
[406522662,1771907442063,-500.0,0.00013073,2]
[406522663,1771907442072,-500.0,0.00013073,2]
[406522664,1771907442081,-500.0,0.00013073,2]
[406522665,1771907442090,-500.0,0.00013073,2]
[406522666,1771907442099,-500.34349631,0.00013073,2]
[406522667,1771907442108,-500.0,0.00013073,2]
[406522668,1771907442117,-502.31192663,0.00013073,2]
[406522669,1771907442126,-500.0,0.00013073,2]
[406522670,1771907442135,-500.0,0.00013073,2]
[406522671,1771907442143,-500.0,0.00013073,2]
[406522672,1771907442152,-500.0,0.00013073,2]
[406522673,1771907442161,-500.0,0.00013073,2]
[406522674,1771907442170,-239.96280814,0.00013073,2]
[406522675,1771907442179,-500.0,0.00013073,2]
[406522676,1771907442188,-500.20340125,0.00013073,2]
[406522677,1771907442197,-500.78031298,0.00013073,2]
[406522678,1771907442207,-500.0,0.00013073,2]
[406522679,1771907442216,-504.35563358,0.00013073,2]
[406522680,1771907442225,-500.64938591,0.00013073,2]
[406522681,1771907442235,-502.15928887,0.00013073,2]
[406522682,1771907442243,-500.60830622,0.00013073,2]
[406522683,1771907442252,-500.45758158,0.00013073,2]
[406522684,1771907442262,-384.53358442,0.00013073,2]
[406522685,1771907442272,-307.44,0.00013079,2]
[406522686,1771907442281,-500.0,0.0001312,2]
[406522687,1771907442290,-500.0,0.0001312,2]
[406522688,1771907442299,-500.0,0.0001312,2]
[406522689,1771907442308,-596.40260447,0.0001312,2]
[406522690,1771907442317,-500.0,0.0001312,2]
[406522691,1771907442326,-500.0,0.0001312,2]
[406522692,1771907442335,-500.0,0.0001312,2]
[406522693,1771907442344,-226.07766539,0.0001312,2]
[406522694,1771907442352,-173.75497189,0.0001312,2]
[406522695,1771907442361,-500.0,0.0001312,2]
[406522696,1771907442370,-500.0,0.0001312,2]
[406522697,1771907442379,-500.0,0.0001312,2]
[406522698,1771907442388,-502.09765964,0.0001312,2]
[406522699,1771907442397,-500.0,0.0001312,2]
[406522700,1771907442406,-500.0,0.0001312,2]
[406522701,1771907442415,-500.0,0.0001312,2]
[406522702,1771907442423,-500.0,0.0001312,2]
[406522703,1771907442432,-500.0,0.0001312,2]
[406522704,1771907442441,-500.0,0.0001312,2]
[406522705,1771907442451,-500.0,0.0001312,2]
[406522706,1771907442460,-500.0,0.0001312,2]
[406522707,1771907442471,-500.0,0.0001312,2]
[406522708,1771907442479,-500.0,0.0001312,2]
[406522709,1771907442488,-500.0,0.0001312,2]
[406522710,1771907442499,-500.0,0.0001312,2]
[406522711,1771907442510,-500.0,0.0001312,2]
[406522712,1771907442520,-500.0,0.0001312,2]
[406522713,1771907442529,-500.0,0.0001312,2]
[406522714,1771907442539,-500.0,0.0001312,2]
[406522715,1771907442548,-500.0,0.0001312,2]
[406522716,1771907442558,-500.0,0.0001312,2]
[406522717,1771907442569,-500.0,0.0001312,2]
[406522718,1771907442578,-500.0,0.0001312,2]
[406522719,1771907442588,-500.0,0.0001312,2]
[406522720,1771907442597,-500.0,0.0001312,2]
[406522721,1771907442607,-500.0,0.0001312,2]
[406522722,1771907442616,-500.0,0.0001312,2]
[406522723,1771907442625,-800.0,0.0001312,2]
[406522724,1771907442638,-500.0,0.0001312,2]
[406522725,1771907442647,-800.0,0.0001312,2]
[406522726,1771907442656,-500.0,0.0001312,2]
[406522727,1771907442665,-500.0,0.0001312,2]
[406522728,1771907442674,-800.0,0.0001312,2]
[406522729,1771907442684,-500.54627495,0.0001312,2]
[406522730,1771907442693,-500.0,0.0001312,2]
[406522731,1771907442702,-500.0,0.0001312,2]
[406522732,1771907442711,-800.0,0.0001312,2]
[406522733,1771907442721,-500.0,0.0001312,2]
[406522734,1771907442731,-800.0,0.0001312,2]
[406522735,1771907442740,-500.0,0.0001312,2]